bitfinex-derivatives/quotes_SOLF0:USTF0_20250712
["timestamp","ask_amount","ask_price","bid_price","bid_amount"]
[1752331457043,9.91640856,159.63,159.62,3.45]
[1752331458242,3.61,159.62,159.59,5.25818348]
[1752331458445,3.61,159.62,159.59,3.45]
[1752331458642,6.68558037,159.62,159.59,3.45]
[1752331458844,3.61,159.61,159.59,3.45]
[1752331459043,3.61,159.61,159.6,3.45]
[1752331463252,3.65410856,159.63,159.6,3.45]
[1752331463652,0.04410856,159.63,159.6,3.45]
[1752331464152,0.04410856,159.63,159.62,3.45]
[1752331465254,3.65410856,159.63,159.62,3.45]
[1752331468956,0.04410856,159.63,159.62,3.45]
[1752331469359,0.04410856,159.63,159.62,9.7127]
[1752331473463,3.65410856,159.63,159.62,9.7127]
[1752331473657,0.04410856,159.63,159.62,9.7127]
[1752331474053,0.04410856,159.63,159.62,14.97069904]
[1752331476559,0.04410856,159.63,159.62,9.7127]
[1752331476756,0.04410856,159.63,159.62,14.98174125]
[1752331477060,0.04410856,159.63,159.62,9.7127]
[1752331477967,3.65410856,159.63,159.62,14.98176603]
[1752331481562,3.65410856,159.63,159.62,8.71906603]
[1752331481766,3.65410856,159.63,159.6,3.45]
[1752331482064,3.65410856,159.63,159.61,3.45]
[1752331483165,6.2629,159.62,159.61,3.45]
[1752331483366,9.8729,159.62,159.61,3.45]
[1752331484163,6.2631,159.61,159.6,5.26906603]
[1752331484468,3.61,159.61,159.59,3.45]
[1752331484966,9.7437,159.6,159.59,3.45]
[1752331491770,9.7439,159.59,159.58,3.57]
[1752331491975,3.48,159.59,159.58,3.57]
[1752331492173,9.7439,159.59,159.58,3.57]
[1752331494977,11.7138289,159.59,159.58,3.57]
[1752331495976,6.2643,159.58,159.57,3.57]
[1752331496178,9.7443,159.58,159.57,3.57]
[1752331496576,3.48,159.57,159.56,3.57]
[1752331496976,3.48,159.57,159.56,9.8351]
[1752331499581,3.48,159.57,159.56,3.57]
[1752331500483,3.48,159.57,159.56,9.8351]
[1752331500677,2.01372134,159.58,159.56,9.8351]
[1752331500877,0.04379244,159.58,159.57,3.57]
[1752331501681,3.52379244,159.58,159.57,3.57]
[1752331501885,3.52379244,159.58,159.57,9.8347]
[1752331502384,3.52379244,159.58,159.57,3.57]
[1752331502686,0.04379244,159.58,159.57,3.57]
[1752331503283,9.78809244,159.58,159.57,3.57]
[1752331505488,3.52379244,159.58,159.57,3.57]
[1752331506789,9.78809244,159.58,159.57,3.57]
[1752331507985,3.52379244,159.58,159.57,3.57]
[1752331509185,9.78809244,159.58,159.57,3.57]
[1752331511594,3.48,159.57,159.56,3.57]
[1752331511991,9.7447,159.57,159.56,3.57]
[1752331514592,3.48,159.57,159.56,3.57]
[1752331516488,11.59822134,159.58,159.57,3.68]
[1752331516697,9.62829244,159.58,159.57,3.68]
[1752331518192,6.30829244,159.58,159.57,3.68]
[1752331518388,0.04379244,159.58,159.57,3.68]
[1752331518594,3.36379244,159.58,159.57,3.68]
[1752331519383,0.04379244,159.58,159.57,9.9447]
[1752331520090,3.36379244,159.58,159.57,3.68]
[1752331520694,6.2647,159.57,159.55,6.2654]
[1752331520991,6.2647,159.57,159.56,3.68]
[1752331521492,9.5847,159.57,159.56,3.68]
[1752331521888,11.5546289,159.57,159.56,3.68]
[1752331522193,9.5847,159.57,159.56,3.68]
[1752331522489,3.32,159.56,159.54,2.15065]
[1752331522687,0.04379244,159.58,159.54,2.15065]
[1752331522688,5.2899289,159.55,159.54,2.15065]
[1752331524097,11.5554289,159.55,159.54,2.15065]
[1752331525796,11.5554289,159.55,159.54,5.83065]
[1752331526695,11.5554289,159.55,159.54,2.15065]
[1752331529499,11.5554289,159.55,159.54,5.83065]
[1752331530795,1.9699289,159.57,159.54,5.83065]
[1752331530999,3.32,159.56,159.55,3.68]
[1752331532299,9.5851,159.56,159.55,3.68]
[1752331533601,11.5550289,159.56,159.55,3.68]
[1752331534699,6.30819244,159.58,159.55,3.68]
[1752331534898,11.59812134,159.58,159.55,9.9453]
[1752331535092,9.62819244,159.58,159.56,3.68]
[1752331535702,3.36379244,159.58,159.57,3.68]
[1752331536806,9.62809244,159.58,159.57,3.68]
[1752331538401,3.32,159.56,159.54,2.15065]
[1752331538610,3.32,159.55,159.54,5.83065]
[1752331539601,9.5855,159.55,159.54,5.83065]
[1752331540596,9.5855,159.55,159.54,2.15065]
[1752331541505,6.2651,159.56,159.54,2.15065]
[1752331541706,3.32,159.56,159.54,5.83065]
[1752331541908,183.22,159.57,159.55,3.68]
[1752331542208,189.4849,159.57,159.55,3.68]
[1752331542403,186.54,159.57,159.55,3.68]
[1752331542705,3.32,159.56,159.54,11.09971603]
[1752331542909,3.32,159.56,159.54,5.83065]
[1752331543510,6.4002351,159.56,159.54,5.83065]
[1752331543705,3.32,159.55,159.54,5.83065]
[1752331544102,9.5855,159.55,159.54,5.83065]
[1752331544309,9.5855,159.55,159.54,2.15065]
[1752331547716,9.5855,159.55,159.54,5.62065]
[1752331548607,6.2652,159.56,159.54,5.62065]
[1752331548801,3.38,159.56,159.55,3.47]
[1752331549808,9.6451,159.56,159.55,3.47]
[1752331550212,6.2655,159.55,159.54,5.62065]
[1752331550414,9.6455,159.55,159.54,5.62065]
[1752331551009,3.38,159.55,159.54,5.62065]
[1752331551213,3.38,159.57,159.55,3.47]
[1752331551608,6.2651,159.56,159.55,3.47]
[1752331551810,9.6451,159.56,159.55,3.47]
[1752331553918,9.6455,159.55,159.54,2.15065]
[1752331554309,9.6455,159.55,159.54,5.62065]
[1752331556821,3.38,159.55,159.54,11.88655]
[1752331557015,3.38,159.57,159.55,3.47]
[1752331557618,9.6449,159.57,159.55,3.47]
[1752331559321,0.04379244,159.58,159.55,3.47]
[1752331559521,0.04379244,159.58,159.56,3.47]
[1752331559722,9.68829244,159.58,159.56,3.47]
[1752331561321,6.2647,159.57,159.56,3.47]
[1752331561824,6.30829244,159.58,159.57,3.47]
[1752331562118,0.04379244,159.58,159.57,3.47]
[1752331562417,3.38,159.61,159.57,6.5502351]
[1752331562622,186.48,159.62,159.6,3.47]
[1752331563324,6.2631,159.61,159.6,3.47]
[1752331564119,189.3628,159.62,159.6,3.47]
[1752331564425,3.38,159.64,159.6,9.7331]
[1752331564621,3.38,159.64,159.61,3.47]
[1752331564821,9.6421,159.64,159.61,3.47]
[1752331565026,130.17664104,159.65,159.61,3.0802351]
[1752331565223,184.13049887,159.66,159.62,3.47]
[1752331565224,189.3014,159.66,159.62,3.47]
[1752331565424,3.38,159.65,159.61,5.27030068]
[1752331565626,3.38,159.65,159.62,3.47]
[1752331565827,3.38,159.64,159.62,3.47]
[1752331566126,9.6419,159.64,159.62,3.47]
[1752331566525,183.04,159.66,159.62,3.47]
[1752331566726,183.04,159.66,159.62,6.5502351]
[1752331566924,183.04,159.66,159.63,3.47]
[1752331567125,186.42,159.66,159.63,3.47]
[1752331567327,189.3013,159.66,159.63,3.47]
[1752331567722,192.6813,159.66,159.63,6.2622]
[1752331567919,192.6813,159.66,159.64,3.47]
[1752331568429,6.2615,159.65,159.64,3.47]
[1752331569427,192.6813,159.66,159.64,3.47]
[1752331570228,189.3013,159.66,159.64,3.47]
[1752331570428,9.6415,159.65,159.64,3.47]
[1752331571631,186.1202351,159.66,159.62,3.47]
[1752331571826,3.38,159.63,159.61,0.04002851]
[1752331572429,9.6427,159.62,159.61,0.04002851]
[1752331573023,12.7229351,159.62,159.61,0.04002851]
[1752331582737,12.7229351,159.62,159.61,3.43002851]
[1752331583329,6.2627,159.62,159.61,3.43002851]
[1752331583936,9.7227,159.62,159.61,3.43002851]
[1752331586841,9.7227,159.62,159.61,0.04002851]
[1752331587042,12.8029351,159.62,159.61,0.04002851]
[1752331587545,12.8029351,159.62,159.61,3.43002851]
[1752331588442,6.2627,159.62,159.61,3.43002851]
[1752331588940,3.46,159.65,159.61,3.43002851]
[1752331589336,3.46,159.65,159.61,9.69282851]
[1752331589643,6.2622,159.64,159.62,3.39]
[1752331590945,6.2623,159.63,159.62,3.39]
[1752331597251,9.7223,159.63,159.62,3.39]
[1752331600058,6.2623,159.63,159.62,3.39]
[1752331600754,9.7227,159.62,159.61,3.43002851]
[1752331601257,12.8029351,159.62,159.61,0.04002851]
[1752331602749,6.2627,159.62,159.61,3.43002851]
[1752331602952,3.46,159.64,159.61,3.43002851]
[1752331603349,6.2627,159.62,159.61,3.43002851]
[1752331604756,6.2625,159.63,159.61,3.43002851]
[1752331604955,6.6402351,159.69,159.61,6.51026361]
[1752331605156,185.7602351,159.69,159.61,8.36818482]
[1752331605357,6.2614,159.66,159.64,3.4]
[1752331610064,6.2614,159.66,159.64,9.6619]
[1752331610262,9.8214,159.66,159.65,3.4]
[1752331610457,9.8219,159.64,159.63,0.04260461]
[1752331610964,9.8219,159.64,159.59,3.4]
[1752331610965,6.2635,159.6,159.59,3.4]
[1752331611163,9.8235,159.6,159.59,3.4]
[1752331611663,9.8243,159.58,159.57,3.4]
[1752331612765,9.38613686,159.59,159.57,3.4]
[1752331613470,0.04190176,159.59,159.57,3.4]
[1752331613662,0.04190176,159.59,159.57,9.6645]
[1752331613857,0.04190176,159.59,159.57,6.2645]
[1752331614063,0.04190176,159.59,159.58,3.4]
[1752331614969,0.04190176,159.59,159.58,9.6643]
[1752331615172,3.56,159.64,159.58,3.4]
[1752331615376,3.56,159.66,159.6,3.4]
[1752331615873,3.56,159.66,159.63,3.4]
[1752331616972,3.56,159.66,159.63,3.44015057]
[1752331617171,9.8219,159.64,159.63,3.44015057]
[1752331617674,9.8219,159.64,159.63,0.04015057]
[1752331618583,9.8219,159.64,159.63,3.44015057]
[1752331618782,9.8219,159.64,159.63,0.04015057]
[1752331619482,6.2612,159.66,159.63,3.44015057]
[1752331619685,189.2202351,159.67,159.63,3.44015057]
[1752331619880,185.6602351,159.67,159.63,3.44015057]
[1752331620184,6.2614,159.66,159.63,9.70235057]
[1752331620478,6.2614,159.66,159.64,3.4]
[1752331620783,9.8214,159.66,159.64,3.4]
[1752331621586,186.14,159.67,159.65,3.4]
[1752331621884,3.56,159.65,159.63,0.04015057]
[1752331622280,9.8216,159.65,159.63,0.04015057]
[1752331622489,186.14,159.67,159.64,3.4]
[1752331622685,6.2614,159.66,159.64,3.4]
[1752331624389,3.56,159.66,159.63,3.44015057]
[1752331624690,3.56,159.66,159.64,3.4]
[1752331624878,6.2615,159.65,159.64,3.4]
[1752331625185,9.8215,159.65,159.64,3.4]
[1752331631289,9.8219,159.64,159.63,0.04015057]
[1752331633794,9.8219,159.64,159.63,3.44015057]
[1752331633993,6.2619,159.64,159.63,3.44015057]
[1752331634296,9.8217,159.65,159.63,3.44015057]
[1752331634494,6.2617,159.65,159.63,3.44015057]
[1752331634992,6.2617,159.65,159.64,3.44]
[1752331637391,9.8817,159.65,159.64,3.44]
[1752331637686,9.8819,159.64,159.63,3.48015057]
[1752331638195,6.2619,159.64,159.63,3.48015057]
[1752331641095,6.2617,159.65,159.63,3.48015057]
[1752331641798,6.2614,159.66,159.64,3.44]
[1752331642098,3.62,159.67,159.64,3.44]
[1752331643198,9.8815,159.65,159.64,3.44]
[1752331652309,9.8819,159.64,159.63,0.04015057]
[1752331652807,12.959119,159.64,159.63,0.04015057]
[1752331664607,12.959119,159.64,159.63,3.48015057]
[1752331665121,12.959119,159.64,159.63,0.04015057]
[1752331665706,12.959119,159.64,159.63,3.61015057]
[1752331667913,182.32,159.67,159.63,3.61015057]
[1752331667914,6.2617,159.65,159.63,3.61015057]
[1752331668418,9.8613,159.66,159.64,3.57]
[1752331669218,6.2615,159.65,159.64,3.57]
[1752331671819,9.8615,159.65,159.64,3.57]
[1752331672713,6.2615,159.65,159.64,3.57]
[1752331672919,9.8613,159.66,159.64,3.57]
[1752331673121,6.2613,159.66,159.64,3.57]
[1752331674125,6.2613,159.66,159.64,6.2619]
[1752331674327,6.2613,159.66,159.65,3.57]
[1752331681028,6.2619,159.64,159.63,0.04015057]
[1752331681528,9.8617,159.65,159.63,6.30245057]
[1752331681722,6.2617,159.65,159.64,3.57]
[1752331681922,9.8617,159.65,159.64,3.57]
[1752331686136,9.8612,159.66,159.64,3.57]
[1752331686329,3.6,159.66,159.64,3.57]
[1752331687135,6.2615,159.65,159.64,3.57]
[1752331687938,185.92,159.67,159.65,3.57]
[1752331689235,6.2611,159.66,159.65,3.57]
[1752331691037,9.8611,159.66,159.65,3.57]
[1752331691638,9.8619,159.64,159.63,3.61015057]
[1752331692531,9.8619,159.64,159.63,0.04015057]
[1752331692739,12.9389933,159.64,159.63,0.04015057]
[1752331693140,12.93977804,159.64,159.63,0.04015057]
[1752331695038,9.7835,159.6,159.59,3.41]
[1752331695242,3.52,159.6,159.58,3.41]
[1752331695738,3.07787804,159.59,159.58,3.41]
[1752331695936,6.59787804,159.59,159.58,3.41]
[1752331696134,12.86177804,159.59,159.58,3.41]
[1752331696641,6.2649,159.57,159.56,3.41]
[1752331696948,6.59787804,159.59,159.56,3.41]
[1752331697244,6.2645,159.58,159.56,3.41]
[1752331697644,0.04109461,159.6,159.56,3.41]
[1752331697845,3.56109461,159.6,159.55,5.24970022]
[1752331698039,3.56109461,159.6,159.57,3.41]
[1752331698442,6.2641,159.59,159.57,3.41]
[1752331699348,6.2643,159.58,159.57,3.41]
[1752331700045,3.56109461,159.6,159.57,3.41]
[1752331700948,9.82479461,159.6,159.58,3.41]
[1752331704251,6.2639,159.59,159.58,3.41]
[1752331704749,9.82489461,159.6,159.58,3.41]
[1752331704951,3.52,159.59,159.58,3.41]
[1752331705744,9.7839,159.59,159.58,3.41]
[1752331706447,6.2639,159.59,159.58,3.41]
[1752331708753,9.82469461,159.6,159.58,3.41]
[1752331709052,6.30469461,159.6,159.58,3.41]
[1752331709447,3.56109461,159.6,159.58,3.41]
[1752331709647,0.04109461,159.6,159.59,3.41]
[1752331710957,0.04109461,159.6,159.59,9.6739]
[1752331713351,3.56109461,159.6,159.59,3.41]
[1752331713750,9.82459461,159.6,159.59,3.41]
[1752331714657,6.30459461,159.6,159.59,3.41]
[1752331715852,9.82459461,159.6,159.59,3.41]
[1752331717157,6.30459461,159.6,159.59,3.41]
[1752331718857,0.04109461,159.6,159.59,3.41]
[1752331720359,6.30459461,159.6,159.59,3.41]
[1752331723062,0.04109461,159.6,159.59,3.41]
[1752331723264,0.04109461,159.6,159.59,9.6739]
[1752331726166,0.04109461,159.6,159.59,3.41]
[1752331727168,0.04109461,159.6,159.59,9.6739]
[1752331728071,0.04109461,159.6,159.59,3.41]
[1752331729273,9.84459461,159.6,159.59,3.41]
[1752331731473,0.04109461,159.6,159.59,3.41]
[1752331731674,3.54,159.63,159.59,3.41]
[1752331731877,6.61743784,159.63,159.6,3.51]
[1752331732072,6.2631,159.61,159.6,3.51]
[1752331732372,9.8031,159.61,159.6,3.51]
[1752331732577,9.8039,159.59,159.58,3.51]
[1752331737287,9.8043,159.58,159.57,3.55187301]
[1752331739383,3.54,159.56,159.54,10.90481896]
[1752331739582,6.61792425,159.56,159.54,10.90481896]
[1752331739784,3.54,159.55,159.54,10.90481896]
[1752331740486,9.8055,159.55,159.54,10.90481896]
[1752331741090,9.8055,159.55,159.54,2.15065]
[1752331741881,9.8055,159.55,159.54,2.0657342]
[1752331742384,3.44,159.5,159.49,8.75416896]
[1752331742588,6.51792425,159.5,159.49,3.51]
[1752331742886,12.78532425,159.5,159.49,3.51]
[1752331743284,3.07792425,159.52,159.49,3.51]
[1752331743484,12.78482425,159.52,159.49,6.2676]
[1752331743691,6.2669,159.52,159.5,3.51]
[1752331743992,0.04026088,159.52,159.5,3.51]
[1752331744480,3.48026088,159.52,159.5,3.51]
[1752331744678,9.74716088,159.52,159.5,3.51]
[1752331747192,3.48026088,159.52,159.51,3.51]
[1752331747786,0.04026088,159.52,159.51,3.51]
[1752331747986,0.04026088,159.52,159.51,9.777]
[1752331748990,181.86,159.57,159.54,6.2658]
[1752331749196,3.44,159.58,159.55,3.51]
[1752331749691,6.265,159.57,159.56,3.51]
[1752331749891,9.745,159.57,159.56,3.51]
[1752331750884,9.745,159.57,159.53,6.2661]
[1752331750885,9.7452,159.56,159.55,3.51]
[1752331752295,6.2648,159.57,159.55,3.51]
[1752331752500,9.7448,159.57,159.55,3.51]
[1752331755199,6.2651,159.56,159.55,3.51]
[1752331756802,9.7448,159.57,159.55,3.51]
[1752331757098,9.7448,159.57,159.54,6.30545372]
[1752331757300,3.48,159.57,159.55,3.48]
[1752331758104,6.2651,159.56,159.55,3.48]
[1752331758303,3.48,159.57,159.55,3.48]
[1752331759404,9.745,159.57,159.55,3.48]
[1752331759605,3.48,159.57,159.55,3.48]
[1752331759798,3.47,159.55,159.54,0.03965372]
[1752331761004,9.7355,159.55,159.54,0.03965372]
[1752331762403,9.7355,159.55,159.54,5.372e-05]
[1752331762600,9.737,159.51,159.5,3.48]
[1752331763399,6.267,159.51,159.5,3.48]
[1752331763709,12.81472425,159.52,159.5,3.48]
[1752331763903,6.54792425,159.54,159.5,3.48]
[1752331764411,3.12013532,159.54,159.51,3.48]
[1752331764707,0.04221107,159.54,159.51,3.48]
[1752331765711,9.77811107,159.54,159.51,9.7468]
[1752331766309,9.77811107,159.54,159.52,6.2665]
[1752331766509,6.30811107,159.54,159.53,3.48]
[1752331768408,9.77811107,159.54,159.53,3.48]
[1752331771108,12.85603532,159.54,159.53,3.48]
[1752331771414,9.7368,159.52,159.5,3.48]
[1752331771616,3.47,159.52,159.51,3.48]
[1752331772617,3.47,159.52,159.47,3.48]
[1752331772913,3.47,159.53,159.47,3.48]
[1752331773614,6.59013532,159.54,159.5,3.48]
[1752331774010,12.85623532,159.54,159.51,6.267]
[1752331774206,12.85623532,159.54,159.52,3.48]
[1752331775720,9.77831107,159.54,159.52,3.48]
[1752331775909,6.30831107,159.54,159.52,3.48]
[1752331777412,6.2662,159.53,159.52,3.48]
[1752331777619,9.7362,159.53,159.52,3.48]
[1752331777820,6.2662,159.53,159.52,3.48]
[1752331778722,9.7362,159.53,159.52,3.48]
[1752331779018,6.2662,159.53,159.52,3.48]
[1752331779413,9.7362,159.53,159.52,3.48]
[1752331780613,6.2662,159.53,159.52,3.48]
[1752331780916,3.51221107,159.54,159.52,3.48]
[1752331781118,3.51221107,159.54,159.49,5.24818435]
[1752331781318,9.77801107,159.54,159.53,3.48]
[1752331781817,3.47,159.53,159.51,3.48]
[1752331782414,6.2667,159.52,159.51,3.48]
[1752331782609,3.47,159.51,159.49,3.48]
[1752331782813,6.54792425,159.5,159.45,5.24818435]
[1752331783014,3.47,159.49,159.46,3.48]
[1752331783414,6.2685,159.48,159.46,3.48]
[1752331784122,9.7386,159.47,159.45,5.24818435]
[1752331784321,3.47,159.47,159.45,5.24818435]
[1752331784523,3.51167266,159.49,159.45,5.24818435]
[1752331784721,9.7585,159.48,159.47,3.47]
[1752331786020,6.2685,159.48,159.47,3.47]
[1752331786221,9.38749691,159.49,159.47,3.47]
[1752331786420,12.87749691,159.49,159.47,3.47]
[1752331786820,9.38749691,159.49,159.47,3.47]
[1752331787122,6.2682,159.48,159.47,3.47]
[1752331787716,9.7582,159.48,159.47,3.47]
[1752331789021,6.269,159.46,159.44,3.47]
[1752331789422,6.269,159.46,159.43,11.51798435]
[1752331789626,9.759,159.46,159.44,3.47]
[1752331789827,3.49,159.46,159.44,6.2697]
[1752331790030,3.49,159.46,159.45,3.47]
[1752331790425,6.2688,159.47,159.45,3.47]
[1752331791929,9.7588,159.47,159.45,3.47]
[1752331793232,6.2688,159.47,159.45,3.47]
[1752331793835,9.7588,159.47,159.45,3.47]
[1752331797132,6.2688,159.47,159.45,3.47]
[1752331798333,9.7596,159.45,159.43,3.47]
[1752331798539,6.2696,159.45,159.43,3.47]
[1752331799332,9.7596,159.45,159.42,6.2705]
[1752331799538,9.7596,159.45,159.43,3.47]
[1752331799837,6.2696,159.45,159.43,3.47]
[1752331800131,6.2696,159.45,159.43,9.7401]
[1752331800337,9.7596,159.45,159.42,3.47]
[1752331800740,9.7596,159.45,159.43,3.47]
[1752331801136,3.49,159.43,159.41,3.47]
[1752331801630,9.7599,159.44,159.41,9.7408]
[1752331801835,9.7599,159.44,159.42,3.47]
[1752331802130,3.08490651,159.43,159.41,6.2708]
[1752331802330,3.49,159.45,159.4,3.47]
[1752331802534,6.57490651,159.43,159.4,3.47]
[1752331803136,6.61655466,159.43,159.4,3.47]
[1752331803338,6.271,159.41,159.4,3.47]
[1752331805640,9.7607,159.42,159.4,3.47]
[1752331806042,9.7607,159.42,159.39,6.2715]
[1752331806245,9.7607,159.42,159.41,3.47]
[1752331806637,0.04164815,159.43,159.41,3.47]
[1752331807546,0.04164815,159.43,159.41,9.7409]
[1752331807740,0.04164815,159.43,159.41,3.47]
[1752331808645,0.04164815,159.43,159.42,9.7406]
[1752331813543,3.53164815,159.43,159.42,3.47]
[1752331814448,9.80184815,159.43,159.42,3.47]
[1752331815144,3.48,159.42,159.41,3.37]
[1752331815344,0.04164815,159.43,159.41,3.37]
[1752331815846,0.04164815,159.43,159.42,3.37]
[1752331816246,3.52164815,159.43,159.42,3.37]
[1752331816549,9.79184815,159.43,159.42,3.37]
[1752331818353,6.271,159.41,159.39,3.37]
[1752331818553,9.751,159.41,159.4,3.37]
[1752331818753,3.48,159.41,159.38,3.37]
[1752331818954,9.7517,159.4,159.38,3.37]
[1752331819749,9.7517,159.4,159.38,9.642]
[1752331820055,6.2711,159.41,159.39,3.37]
[1752331820248,6.31289374,159.41,159.39,3.37]
[1752331820649,6.31289374,159.41,159.4,3.37]
[1752331821349,0.04179374,159.41,159.4,14.88958435]
[1752331821751,0.04179374,159.41,159.4,9.6414]
[1752331826353,0.04179374,159.41,159.4,14.88958435]
[1752331826554,541.7,159.47,159.4,3.08283554]
[1752331826756,181.7,159.49,159.43,3.37]
[1752331826955,185.18,159.49,159.43,3.37]
[1752331827455,3.08283554,159.5,159.43,3.37]
[1752331827456,3.08283554,159.52,159.44,3.08283554]
[1752331827655,3.48,159.51,159.46,6.45283554]
[1752331827964,3.48,159.51,159.47,3.37]
[1752331828264,6.2675,159.5,159.48,3.37]
[1752331828956,181.7,159.53,159.5,3.37]
[1752331829162,185.18,159.53,159.51,6.52169914]
[1752331829363,185.18,159.53,159.52,9.89169914]
[1752331829663,191.4462,159.53,159.52,6.52169914]
[1752331834664,191.4462,159.53,159.52,9.89169914]
[1752331835362,191.4462,159.53,159.52,6.52169914]
[1752331836557,181.7,159.53,159.52,9.89169914]
[1752331836865,185.1,159.59,159.53,3.37]
[1752331837062,185.1,159.59,159.56,3.37]
[1752331837267,191.3639,159.59,159.58,3.37]
[1752331837563,191.3639,159.59,159.58,9.89169914]
[1752331837858,187.8839,159.59,159.58,6.52169914]
[1752331838059,187.8839,159.59,159.58,9.89169914]
[1752331838256,3.48,159.63,159.59,3.37]
[1752331838562,185.06,159.62,159.61,3.37]
[1752331838759,181.58,159.62,159.61,9.86897664]
[1752331839165,187.8427,159.62,159.61,9.86897664]
[1752331840568,191.3227,159.62,159.61,9.86897664]
[1752331841268,191.3227,159.62,159.61,6.49897664]
[1752331841469,191.3227,159.62,159.61,9.86897664]
[1752331843671,187.8427,159.62,159.61,9.86897664]
[1752331844869,191.3227,159.62,159.61,9.86897664]
[1752331849276,187.8427,159.62,159.61,9.86897664]
[1752331849472,191.3227,159.62,159.61,9.86897664]
[1752331851261,191.3227,159.62,159.61,6.49897664]
[1752331851466,194.40364526,159.62,159.61,6.49897664]
[1752331853274,187.8427,159.62,159.61,9.90897664]
[1752331853769,191.3227,159.62,159.61,9.90897664]
[1752331854366,187.8427,159.62,159.61,9.90897664]
[1752331857377,191.3227,159.62,159.61,9.90897664]
[1752331861577,191.3227,159.62,159.61,6.49897664]
[1752331861779,191.3227,159.62,159.61,9.90897664]
[1752331862081,191.3227,159.62,159.61,3.41]
[1752331862282,191.3227,159.62,159.61,9.89639296]
[1752331862678,191.3227,159.62,159.61,9.89794366]
[1752331864581,187.8427,159.62,159.61,9.89794366]
[1752331865182,191.3227,159.62,159.61,9.90292729]
[1752331865680,187.8427,159.62,159.61,9.90292729]
[1752331865886,181.58,159.62,159.61,9.90292729]
[1752331866086,187.6625,159.63,159.62,3.41]
[1752331866278,187.6625,159.63,159.62,9.90292729]
[1752331868884,181.4,159.63,159.62,9.90292729]
[1752331869281,181.4,159.65,159.63,3.41]
[1752331869588,6.2622,159.64,159.63,3.41]
[1752331869788,6.2622,159.64,159.63,9.91559818]
[1752331874098,181.4,159.65,159.63,9.91559818]
[1752331874393,181.4,159.65,159.64,9.91559818]
[1752331874897,187.6615,159.65,159.64,9.91559818]
[1752331875099,191.1415,159.65,159.64,9.91559818]
[1752331876199,194.22244526,159.65,159.64,6.50559818]
[1752331880404,6.2619,159.64,159.63,3.44]
[1752331880598,9.7419,159.64,159.63,3.44]
[1752331880897,9.7419,159.64,159.6,6.30823621]
[1752331881197,3.48,159.64,159.61,3.44]
[1752331882101,3.48,159.64,159.62,3.44]
[1752331882402,184.48094526,159.65,159.62,3.44]
[1752331882703,3.48,159.63,159.62,3.44]
[1752331883101,187.96094526,159.65,159.62,3.44]
[1752331883305,6.56094526,159.67,159.62,3.44]
[1752331883607,6.2617,159.65,159.62,3.44]
[1752331884001,3.08094526,159.67,159.62,3.48761117]
[1752331884199,181.34,159.68,159.62,8.69931193]
[1752331884399,181.34,159.68,159.62,5.25931193]
[1752331884601,184.82,159.68,159.63,3.44]
[1752331885609,6.261,159.67,159.64,6.2619]
[1752331885808,6.261,159.67,159.65,3.44]
[1752331886005,3.48,159.67,159.63,3.44]
[1752331886210,9.7415,159.66,159.63,9.7021]
[1752331886510,3.48,159.66,159.65,3.44]